Workbook

Sheet Лист1
A1: Школа | C1: МБОУ НОШ № 3 с.Троицкое | F1: Утвердил: | G1: должность | H1: Директор
A2: Типовое примерное меню приготавливаемых блюд | G2: фамилия | H2: Запёка Л.З.
A3: Возрастная категория | E3: 7-11 лет | G3: дата | H3: 1 | I3: 9 | J3: 2024
H4: день | I4: месяц | J4: год
A5: Неделя | B5: День недели | C5: Прием пищи | D5: Раздел меню | E5: Блюда | F5: Вес блюда, г | G5: Белки | H5: Жиры | I5: Углеводы | J5: Калорийность | K5: № рецептуры | L5: Цена
A6: 1 | B6: 1 | C6: Завтрак | D6: гор.блюдо | E6: Каша пшеничная молочная | F6: 210 | G6: 5.7 | H6: 10.5 | I6: 32.5 | J6: =(G6+I6)*4+H6*9 -> 247.3 | K6: 173 | L6: 26
E7: Бутерброд с сыром | F7: 50 | G7: 7.4 | H7: 5.7 | I7: 14.5 | J7: =(G7+I7)*4+H7*9 -> 138.9 | K7: 1 | L7: 22
D8: гор.напиток | E8: Напиток кофейный на молоке сгущ | F8: 200 | G8: 3.2 | H8: 2.7 | I8: 15.6 | J8: 99.5 | K8: 466 | L8: 14
D9: хлеб | E9: Хлеб пшеничный йодированный | F9: 40 | G9: 3 | H9: 0.4 | I9: 19.6 | J9: 94 | K9: 123 | L9: 4.33
D10: фрукты
D13: итого | F13: =SUM(F6:F12) -> 500 | G13: =SUM(G6:G12) -> 19.3 | H13: 19.3 | I13: 82.2 | J13: 579.7 | L13: =SUM(L6:L12) -> 66.33
A14: =A6 -> 1 | B14: =B6 -> 1 | C14: Обед | D14: закуска | E14: Салат из капусты с морковью | F14: 100 | G14: 1.4 | H14: 4.6 | I14: 10.3 | J14: =(G14+I14)*4+H14*9 -> 88.2 | K14: 45 | L14: 20
D15: 1 блюдо | E15: Суп лапша куринный | F15: 200 | G15: 1.9 | H15: 13.4 | I15: 19.7 | J15: 207 | K15: 113 | L15: 40
D16: 2 блюдо | E16: Жаркое по-домашнему | F16: 200 | G16: 19 | H16: 9 | I16: 28 | J16: 269 | K16: 97 | L16: 125
D17: гарнир
D18: напиток | E18: Напиток Витошка | F18: 200 | I18: 18.7 | J18: =(G18+I18)*4+H18*9 -> 74.8 | K18: 508 | L18: 44
D19: хлеб бел. | E19: Хлеб пшеничный йодированный | F19: 40 | G19: 3 | H19: 0.4 | I19: 19.6 | J19: 94 | K19: 123 | L19: 4.33
D20: хлеб черн. | E20: Хлеб ржано-пшеничный | F20: 40 | G20: 1.8 | H20: 0.3 | I20: 19.9 | J20: 89.5 | K20: 575 | L20: 5
D23: итого | F23: =SUM(F14:F22) -> 780 | G23: =SUM(G14:G22) -> 27.1 | H23: 27.7 | I23: 116.2 | J23: 822.5 | L23: =SUM(L14:L22) -> 238.33
A24: =A6 -> 1 | B24: =B6 -> 1 | C24: Итого за день: | F24: =F13+F23 -> 1280 | G24: =G13+G23 -> 46.4 | H24: 47 | I24: 198.4 | J24: 1402.2 | L24: =L13+L23 -> 304.66
A25: 1 | B25: 2 | C25: Завтрак | D25: гор.блюдо | E25: Каша молочная "Дружба" | F25: 210 | G25: 6.1 | H25: 12.1 | I25: 35 | J25: =(G25+I25)*4+H25*9 -> 273.3 | K25: 175 | L25: 26
E26: Яйцо варёное | F26: 40 | G26: 5.08 | H26: 4.6 | I26: 0.28 | J26: =(G26+I26)*4+H26*9 -> 62.84 | K26: 209 | L26: 13
D27: гор.напиток | E27: Какао | F27: 200 | G27: 3.6 | H27: 2.9 | I27: 22.2 | J27: 129.3 | K27: 289 | L27: 16
D28: хлеб | E28: Хлеб пшеничный йодированый | F28: 50 | G28: 3.75 | H28: 0.5 | I28: 24.5 | J28: 117.5 | K28: 123 | L28: 4.9
D32: итого | F32: =SUM(F25:F31) -> 500 | G32: =SUM(G25:G31) -> 18.53 | H32: =SUM(H25:H31) -> 20.1 | I32: =SUM(I25:I31) -> 81.98 | J32: =SUM(J25:J31) -> 582.94 | L32: 59.9
A33: =A25 -> 1 | B33: =B25 -> 2 | C33: Обед | D33: закуска | E33: Икра из кабачков | F33: 60 | G33: 0.5 | H33: 2.9 | I33: 5.1 | J33: =(G33+I33)*4+H33*9 -> 48.5 | K33: 73 | L33: 15
D34: 1 блюдо | E34: Суп картофельный с рыбой | F34: 200 | G34: 4.9 | H34: 8.4 | I34: 15.2 | J34: 156 | K34: 156 | L34: 42
D35: 2 блюдо | E35: Печень тушеная в сметанном соусе | F35: 100 | G35: 12.6 | H35: 11 | I35: 3.8 | J35: 164.6 | K35: 261 | L35: 50
D36: гарнир | E36: Макаронные изделия отварные | F36: 150 | G36: 5 | H36: 7.5 | I36: 27 | J36: 195.5 | K36: 256 | L36: 16
D37: напиток | E37: Компот из кураги | F37: 200 | G37: 1 | H37: 0 | I37: 28.3 | J37: 117.2 | K37: 494 | L37: 10
D38: хлеб бел. | E38: Хлеб пшеничный йодированый | F38: 40 | G38: 3 | H38: 0.4 | I38: 19.6 | J38: 94 | K38: 123 | L38: 4.33
D39: хлеб черн. | E39: Хлеб ржано-пшеничный | F39: 40 | G39: 1.8 | H39: 0.3 | I39: 19.9 | J39: 89.5 | K39: 575 | L39: 5
D42: итого | F42: =SUM(F33:F41) -> 790 | G42: =SUM(G33:G41) -> 28.8 | H42: =SUM(H33:H41) -> 30.5 | I42: =SUM(I33:I41) -> 118.9 | J42: =SUM(J33:J41) -> 865.3 | L42: 142.33
A43: =A25 -> 1 | B43: =B25 -> 2 | C43: Итого за день: | F43: =F32+F42 -> 1290 | G43: =G32+G42 -> 47.33 | H43: =H32+H42 -> 50.6 | I43: =I32+I42 -> 200.88 | J43: =J32+J42 -> 1448.24 | L43: 202.23
A44: 1 | B44: 3 | C44: Завтрак | D44: гор.блюдо | E44: Запеканка из творога со сгущ молоком | F44: 180 | G44: 15.4 | H44: 18 | I44: 38.5 | J44: 377.6 | K44: 223 | L44: 115
D46: гор.напиток | E46: Чай с сахаром | F46: 200 | G46: 0.1 | H46: 0 | I46: 15 | J46: =(G46+I46)*4+H46*9 -> 60.4 | K46: 457 | L46: 1.7
D47: хлеб | E47: Хлеб пшеничный йодированный | F47: 40 | G47: 3 | H47: 0.4 | I47: 19.6 | J47: 94 | K47: 123 | L47: 4.33
D48: фрукты | E48: Яблоко | F48: 100 | G48: 0.4 | H48: 0.4 | I48: 9.8 | J48: =(G48+I48)*4+H48*9 -> 44.4 | K48: 82 | L48: 23.8
D51: итого | F51: =SUM(F44:F50) -> 520 | G51: =SUM(G44:G50) -> 18.9 | H51: =SUM(H44:H50) -> 18.8 | I51: =SUM(I44:I50) -> 82.9 | J51: =SUM(J44:J50) -> 576.4 | L51: 144.83
A52: =A44 -> 1 | B52: =B44 -> 3 | C52: Обед | D52: закуска | E52: Салат из свежих помидоров | F52: 80 | G52: 0.6 | H52: 3 | I52: 3 | J52: =(G52+I52)*4+H52*9 -> 41.4 | K52: 23 | L52: 22
D53: 1 блюдо | E53: Щи с курицей, со сметаной | F53: 200 | G53: 1.3 | H53: 6.3 | I53: 20.3 | J53: 143.1 | K53: 88 | L53: 24
D54: 2 блюдо | E54: Плов из отварной говядины | F54: 200 | G54: 20 | H54: 19.4 | I54: 25.1 | J54: 355 | K54: 244 | L54: 140
D55: гарнир
D56: напиток | E56: Компот из свежих яблок | F56: 200 | G56: 0.16 | H56: 0.16 | I56: 27.9 | J56: =(G56+I56)*4+H56*9 -> 113.68 | K56: 486 | L56: 10
D57: хлеб бел. | E57: Хлеб пшеничный йодированный | F57: 40 | G57: 3 | H57: 0.4 | I57: 19.6 | J57: 94 | K57: 123 | L57: 4.33
D58: хлеб черн. | E58: Хлеб ржано-пшеничный | F58: 40 | G58: 1.8 | H58: 0.3 | I58: 19.9 | J58: 89.5 | K58: 575 | L58: 5
D61: итого | F61: =SUM(F52:F60) -> 760 | G61: =SUM(G52:G60) -> 26.86 | H61: =SUM(H52:H60) -> 29.56 | I61: =SUM(I52:I60) -> 115.8 | J61: =SUM(J52:J60) -> 836.68 | L61: 205.33
A62: =A44 -> 1 | B62: =B44 -> 3 | C62: Итого за день: | F62: =F51+F61 -> 1280 | G62: =G51+G61 -> 45.76 | H62: =H51+H61 -> 48.36 | I62: =I51+I61 -> 198.7 | J62: =J51+J61 -> 1413.08 | L62: 350.16
A63: 1 | B63: 4 | C63: Завтрак | D63: гор.блюдо | E63: Омлет натуральный с зелёным горошком | F63: 200 | G63: 13.1 | H63: 16.9 | I63: 41.2 | J63: =(G63+I63)*4+H63*9 -> 369.3 | K63: 214 | L63: 70
E64: Кисло-молочный продукт | F64: 100 | G64: 3 | H64: 2.5 | I64: 4.2 | J64: =(G64+I64)*4+H64*9 -> 51.3 | K64: 386 | L64: 16
D65: гор.напиток | E65: Напиток Витошка | F65: 180 | I65: 18.7 | J65: 74.8 | K65: 457 | L65: 9.4
D66: хлеб | E66: Хлеб пшеничный йодированый | F66: 40 | G66: 3 | H66: 0.4 | I66: 19.6 | J66: 94 | K66: 123 | L66: 4.33
D67: фрукты
D70: итого | F70: =SUM(F63:F69) -> 520 | G70: =SUM(G63:G69) -> 19.1 | H70: =SUM(H63:H69) -> 19.8 | I70: =SUM(I63:I69) -> 83.7 | J70: =SUM(J63:J69) -> 589.4 | L70: 99.73
A71: =A63 -> 1 | B71: =B63 -> 4 | C71: Обед | D71: закуска | E71: Салат из свежих овощей | F71: 100 | G71: 0.8 | H71: 5 | I71: 4.4 | J71: =(G71+I71)*4+H71*9 -> 65.8 | K71: 24 | L71: 25
D72: 1 блюдо | E72: Суп картофельный с рыбными консервами | F72: 200 | G72: 1.7 | H72: 2.2 | I72: 15.5 | J72: 88.6 | K72: 159 | L72: 30
D73: 2 блюдо | E73: Птица отварная | F73: 90 | G73: 14 | H73: 12 | I73: 1.47 | J73: 169.88 | K73: 288 | L73: 54
D74: гарнир | E74: Капуста тушеная | F74: 200 | G74: 4 | H74: 7.2 | I74: 21.2 | J74: 165.6 | K74: 139 | L74: 18
D75: напиток | E75: Чай с лимоном | F75: 200 | G75: 0.2 | H75: 0.05 | I75: 15.2 | J75: 62.05 | K75: 459 | L75: 5
D76: хлеб бел. | E76: Хлеб пшеничный йодированый | F76: 60 | G76: 4.5 | H76: 0.6 | I76: 29.4 | J76: 141 | K76: 123 | L76: 6.5
D77: хлеб черн. | E77: Хлеб ржано-пшеничный | F77: 60 | G77: 2.7 | H77: 0.45 | I77: 29.8 | J77: 134.05 | K77: 575 | L77: 7.5
D80: итого | F80: =SUM(F71:F79) -> 910 | G80: =SUM(G71:G79) -> 27.9 | H80: =SUM(H71:H79) -> 27.5 | I80: =SUM(I71:I79) -> 116.97 | J80: =SUM(J71:J79) -> 826.98 | L80: 146
A81: =A63 -> 1 | B81: =B63 -> 4 | C81: Итого за день: | F81: =F70+F80 -> 1430 | G81: =G70+G80 -> 47 | H81: =H70+H80 -> 47.3 | I81: =I70+I80 -> 200.67 | J81: =J70+J80 -> 1416.38 | L81: 245.73
A82: 1 | B82: 5 | C82: Завтрак | D82: гор.блюдо | E82: Каша молочная рисовая | F82: 210 | G82: 8.4 | H82: 7 | I82: 47.9 | J82: =(G82+I82)*4+H82*9 -> 288.2 | K82: 182 | L82: 28
E83: Кисло-молочный продукт | F83: 100 | G83: 3 | H83: 2.5 | I83: 4.2 | J83: =(G83+I83)*4+H83*9 -> 51.3 | K83: 386 | L83: 16
D84: гор.напиток | E84: Напиток кофейный на молоке сгущ | F84: 200 | G84: 3.2 | H84: 2.7 | I84: 15.6 | J84: 99.5 | K84: 459 | L84: 14
D85: хлеб | E85: Бутерброд с маслом | F85: 40 | G85: 2.4 | H85: 7.5 | I85: 14.6 | J85: 135.5 | K85: 2 | L85: 16
D89: итого | F89: =SUM(F82:F88) -> 550 | G89: =SUM(G82:G88) -> 17 | H89: =SUM(H82:H88) -> 19.7 | I89: =SUM(I82:I88) -> 82.3 | J89: =SUM(J82:J88) -> 574.5 | L89: 74
A90: =A82 -> 1 | B90: =B82 -> 5 | C90: Обед | D90: закуска | E90: Салат из свежих огурцов | F90: 100 | G90: 0.8 | H90: 6 | I90: 3.4 | J90: =(G90+I90)*4+H90*9 -> 70.8 | K90: 13 | L90: 22
D91: 1 блюдо | E91: Рассольник ленинградский | F91: 200 | G91: 5.2 | H91: 7.9 | I91: 16.8 | J91: 159.1 | K91: 96 | L91: 30
D92: 2 блюдо | E92: Гуляш из говядины со смет соусом | F92: 100 | G92: 13.1 | H92: 6.4 | I92: 3.7 | J92: 124.8 | K92: 246 | L92: 104
D93: гарнир | E93: Картофельное пюре | F93: 150 | G93: 3.2 | H93: 6.9 | I93: 26.3 | J93: 180.1 | K93: 138 | L93: 22.3
D94: напиток | E94: Компот из сухофруктов | F94: 200 | G94: 0.1 | H94: 0 | I94: 21 | J94: 84.4 | K94: 494 | L94: 8
D95: хлеб бел. | E95: Хлеб пшеничный йодированый | F95: 40 | G95: 3 | H95: 0.4 | I95: 19.6 | J95: 94 | K95: 123 | L95: 4.33
D96: хлеб черн. | E96: Хлеб ржано-пшеничный | F96: 40 | G96: 1.8 | H96: 0.3 | I96: 19.9 | J96: 89.5 | K96: 575 | L96: 5
D99: итого | F99: =SUM(F90:F98) -> 830 | G99: =SUM(G90:G98) -> 27.2 | H99: =SUM(H90:H98) -> 27.9 | I99: =SUM(I90:I98) -> 110.7 | J99: =SUM(J90:J98) -> 802.7 | L99: 195.63
A100: =A82 -> 1 | B100: =B82 -> 5 | C100: Итого за день: | F100: =F89+F99 -> 1380 | G100: =G89+G99 -> 44.2 | H100: =H89+H99 -> 47.6 | I100: =I89+I99 -> 193 | J100: =J89+J99 -> 1377.2 | L100: 269.63
A101: 2 | B101: 1 | C101: Завтрак | D101: гор.блюдо | E101: Пельмени с маслом мясные | F101: 175 | G101: 12.4 | H101: 16 | I101: 36.7 | J101: =(G101+I101)*4+H101*9 -> 340.4 | K101: 392 | L101: 104
E102: Кукуруза консервированная | F102: 51 | G102: 1.6 | H102: 1.3 | I102: 5.2 | J102: =(G102+I102)*4+H102*9 -> 38.9 | K102: 133 | L102: 13
D103: гор.напиток | E103: Чай с повидлом | F103: 230 | G103: 0.2 | H103: 0 | I103: 20.2 | J103: 81.6 | K103: 376 | L103: 7
D104: хлеб | E104: Хлеб пшеничный йодированый | F104: 50 | G104: 3.8 | H104: 0.5 | I104: 24.5 | J104: 117.7 | K104: 123 | L104: 3.25
D105: фрукты
D108: итого | F108: =SUM(F101:F107) -> 506 | G108: =SUM(G101:G107) -> 18 | H108: 17.8 | I108: 86.6 | J108: 578.6 | L108: =SUM(L101:L107) -> 127.25
A109: =A101 -> 2 | B109: =B101 -> 1 | C109: Обед | D109: закуска | E109: Винегрет овощной | F109: 100 | G109: 1.62 | H109: 3 | I109: 8.6 | J109: =(G109+I109)*4+H109*9 -> 67.88 | K109: 67 | L109: 22
D110: 1 блюдо | E110: Суп с мясными фрикадельками | F110: 200 | G110: 6.7 | H110: 8.2 | I110: 16.35 | J110: 166 | K110: 104 | L110: 45
D111: 2 блюдо | E111: Рыба тушёная в томате с овощами | F111: 146 | G111: 10.87 | H111: 8.3 | I111: 9 | J111: 154.18 | K111: 80 | L111: 70
D112: гарнир | E112: Картофельное пюре | F112: 150 | G112: 3.2 | H112: 6.9 | I112: 26.3 | J112: 180.1 | K112: 138 | L112: 22.3
D113: напиток | E113: Компот из свежих ягод | F113: 200 | G113: 0 | H113: 0 | I113: 16.1 | J113: 64.4 | K113: 486 | L113: 16
D114: хлеб бел. | E114: Хлеб пшеничный йодированый | F114: 40 | G114: 3 | H114: 0.4 | I114: 19.6 | J114: 94 | K114: 123 | L114: 4.33
D115: хлеб черн. | E115: Хлеб ржано-пшеничный | F115: 40 | G115: 1.8 | H115: 0.3 | I115: 19.9 | J115: 89.5 | K115: 575 | L115: 5
D118: итого | F118: =SUM(F109:F117) -> 876 | G118: =SUM(G109:G117) -> 27.19 | H118: 27.1 | I118: 115.85 | J118: 816.06 | L118: =SUM(L109:L117) -> 184.63
A119: =A101 -> 2 | B119: =B101 -> 1 | C119: Итого за день: | F119: =F108+F118 -> 1382 | G119: =G108+G118 -> 45.19 | H119: =H108+H118 -> 44.9 | I119: =I108+I118 -> 202.45 | J119: =J108+J118 -> 1394.66 | L119: 311.88
A120: 2 | B120: 2 | C120: Завтрак | D120: гор.блюдо | E120: Каша молочная из гречневой крупы | F120: 210 | G120: 7.2 | H120: 11.8 | I120: 30 | J120: =(G120+I120)*4+H120*9 -> 255 | K120: 173 | L120: 27
E121: Бутерброд с сыром | F121: 50 | G121: 7.4 | H121: 5.7 | I121: 14.5 | J121: =(G121+I121)*4+H121*9 -> 138.9 | K121: 1 | L121: 22
D122: гор.напиток | E122: Чай с молоком | F122: 200 | G122: 1.6 | H122: 1.6 | I122: 16.2 | J122: 85.6 | K122: 378 | L122: 8
D123: хлеб | E123: Хлеб пшеничный йодированный | F123: 40 | G123: 3 | H123: 0.4 | I123: 19.6 | J123: 94 | K123: 123 | L123: 3.94
D124: фрукты
D127: итого | F127: =SUM(F120:F126) -> 500 | G127: =SUM(G120:G126) -> 19.2 | H127: 19.5 | I127: 80.3 | J127: 573.5 | L127: =SUM(L120:L126) -> 60.94
A128: =A120 -> 2 | B128: =B120 -> 2 | C128: Обед | D128: закуска | E128: Салат из свеклы с сыром | F128: 60 | G128: 2.8 | H128: 3.7 | I128: 4.7 | J128: =(G128+I128)*4+H128*9 -> 63.3 | K128: 50 | L128: 20
D129: 1 блюдо | E129: Суп куриный с клёцками | F129: 200 | G129: 4.2 | H129: 5.02 | I129: 18.5 | J129: 135.98 | K129: 108 | L129: 20
D130: 2 блюдо | E130: Азу с говядиной | F130: 200 | G130: 15.6 | H130: 19 | I130: 33.7 | J130: 368.2 | K130: 637 | L130: 130
D131: гарнир
D132: напиток | E132: Напиток Витошка | F132: 200 | I132: 18.7 | J132: =(G132+I132)*4+H132*9 -> 74.8 | K132: 508 | L132: 44
D133: хлеб бел. | E133: Хлеб пшеничный йодированный | F133: 40 | G133: 3 | H133: 0.4 | I133: 19.6 | J133: 94 | K133: 123 | L133: 3.94
D134: хлеб черн. | E134: Хлеб ржано-пшеничный | F134: 40 | G134: 1.8 | H134: 0.3 | I134: 19.9 | J134: 89.5 | K134: 575 | L134: 4.55
D137: итого | F137: =SUM(F128:F136) -> 740 | G137: =SUM(G128:G136) -> 27.4 | H137: 28.42 | I137: 115.1 | J137: 825.78 | L137: =SUM(L128:L136) -> 222.49
A138: =A120 -> 2 | B138: =B120 -> 2 | C138: Итого за день: | F138: =F127+F137 -> 1240 | G138: =G127+G137 -> 46.6 | H138: =H127+H137 -> 47.92 | I138: =I127+I137 -> 195.4 | J138: =J127+J137 -> 1399.28 | L138: 283.43
A139: 2 | B139: 3 | C139: Завтрак | D139: гор.блюдо | E139: Запеканка из творога со сгущ молоком | F139: 180 | G139: 15.4 | H139: 18 | I139: 38.5 | J139: 377.6 | K139: 223 | L139: 115
D141: гор.напиток | E141: Чай с лимоном | F141: 200 | G141: 0.2 | H141: 0.05 | I141: 15.2 | J141: =(G141+I141)*4+H141*9 -> 62.05 | K141: 459 | L141: 3.8
D142: хлеб | E142: Хлеб пшеничный йодированый | F142: 40 | G142: 3 | H142: 0.4 | I142: 19.6 | J142: 94 | K142: 123 | L142: 3.94
D143: фрукты | E143: Яблоко | F143: 100 | G143: 0.4 | H143: 0.4 | I143: 9.8 | J143: =(G143+I143)*4+H143*9 -> 44.4 | K143: 82 | L143: 23.8
D146: итого | F146: =SUM(F139:F145) -> 520 | G146: =SUM(G139:G145) -> 19 | H146: 18.85 | I146: 83.1 | J146: 578.05 | L146: =SUM(L139:L145) -> 146.54
A147: =A139 -> 2 | B147: =B139 -> 3 | C147: Обед | D147: закуска | E147: Салат из свежих помидоров | F147: 80 | G147: 0.6 | H147: 3 | I147: 3 | J147: =(G147+I147)*4+H147*9 -> 41.4 | K147: 23 | L147: 22
D148: 1 блюдо | E148: Борщ с капустой и картофелем | F148: 200 | G148: 4.2 | H148: 5.2 | I148: 12 | J148: 111.6 | K148: 82 | L148: 45
D149: 2 блюдо | E149: Печень тушеная в сметанном соусе | F149: 100 | G149: 12.6 | H149: 11 | I149: 3.8 | J149: 164.6 | K149: 261 | L149: 50
D150: гарнир | E150: Каша рисовая рассыпчатая | F150: 150 | G150: 3.6 | H150: 4 | I150: 35.8 | J150: 193.6 | K150: 302 | L150: 20
D151: напиток | E151: Напиток из шиповника | F151: 200 | G151: 0.4 | H151: 0.27 | I151: 17.2 | J151: 72.83 | K151: 508 | L151: 10
D152: хлеб бел. | E152: Хлеб пшеничный йодированый | F152: 40 | G152: 3 | H152: 0.4 | I152: 19.6 | J152: 94 | K152: 123 | L152: 3.94
D153: хлеб черн. | E153: Хлеб ржано-пшеничный | F153: 80 | G153: 3.6 | H153: 0.6 | I153: 39.8 | J153: 179 | K153: 575 | L153: 9.1
D156: итого | F156: =SUM(F147:F155) -> 850 | G156: =SUM(G147:G155) -> 28 | H156: 24.47 | I156: 131.2 | J156: 857.03 | L156: =SUM(L147:L155) -> 160.04
A157: =A139 -> 2 | B157: =B139 -> 3 | C157: Итого за день: | F157: =F146+F156 -> 1370 | G157: =G146+G156 -> 47 | H157: =H146+H156 -> 43.32 | I157: =I146+I156 -> 214.3 | J157: =J146+J156 -> 1435.08 | L157: 306.58
A158: 2 | B158: 4 | C158: Завтрак | D158: гор.блюдо | E158: Каша молочная овсянная (хлопья) | F158: 210 | G158: 7 | H158: 9 | I158: 47.8 | J158: =(G158+I158)*4+H158*9 -> 300.2 | K158: 173 | L158: 26
E159: Яйцо вареное | F159: 40 | G159: 5.1 | H159: 4.6 | I159: 0.3 | J159: =(G159+I159)*4+H159*9 -> 63 | K159: 209 | L159: 13
D160: гор.напиток | E160: Напиток Витошка | F160: 200 | I160: 18.7 | J160: 74.8 | K160: 508 | L160: 9.4
D161: хлеб | E161: Бутерброд с сыром | F161: 50 | G161: 7.4 | H161: 5.7 | I161: 14.5 | J161: 138.9 | K161: 1 | L161: 22.5
D162: фрукты
D165: итого | F165: =SUM(F158:F164) -> 500 | G165: =SUM(G158:G164) -> 19.5 | H165: 19.3 | I165: 81.3 | J165: 576.9 | L165: =SUM(L158:L164) -> 70.9
A166: =A158 -> 2 | B166: =B158 -> 4 | C166: Обед | D166: закуска | E166: Салат из свежих огурцов | F166: 100 | G166: 0.8 | H166: 6 | I166: 3.4 | J166: =(G166+I166)*4+H166*9 -> 70.8 | K166: 13 | L166: 22
D167: 1 блюдо | E167: Суп картофельный с бобовыми | F167: 200 | G167: 4.5 | H167: 4.3 | I167: 18.1 | J167: 129.1 | K167: 102 | L167: 20
D168: 2 блюдо | E168: Птица отварная | F168: 90 | G168: 14.9 | H168: 11.8 | I168: 1.47 | J168: 171.68 | K168: 288 | L168: 54
D169: гарнир | E169: Рагу из овощей | F169: 150 | G169: 2.1 | H169: 4.2 | I169: 25 | J169: 146.2 | K169: 150 | L169: 25
D170: напиток | E170: Кисель из свежих ягод | F170: 200 | G170: 0 | H170: 0 | I170: 29.7 | J170: 118.8 | K170: 479 | L170: 21
D171: хлеб бел. | E171: Хлеб пшенично йодированый | F171: 40 | G171: 3 | H171: 0.4 | I171: 19.6 | J171: 94 | K171: 123 | L171: 3.94
D172: хлеб черн. | E172: Хлеб ржано-пшеничеый | F172: 40 | G172: 1.8 | H172: 0.3 | I172: 19.9 | J172: 89.5 | K172: 575 | L172: 4.55
D175: итого | F175: =SUM(F166:F174) -> 820 | G175: =SUM(G166:G174) -> 27.1 | H175: 27 | I175: 117.17 | J175: 820.08 | L175: =SUM(L166:L174) -> 150.49
A176: =A158 -> 2 | B176: =B158 -> 4 | C176: Итого за день: | F176: =F165+F175 -> 1320 | G176: =G165+G175 -> 46.6 | H176: =H165+H175 -> 46.3 | I176: =I165+I175 -> 198.47 | J176: =J165+J175 -> 1396.98 | L176: 221.39
A177: 2 | B177: 5 | C177: Завтрак | D177: гор.блюдо | E177: Макаронные изделия с сыром | F177: 180 | G177: 8.6 | H177: 10.1 | I177: 32.8 | J177: =(G177+I177)*4+H177*9 -> 256.5 | K177: 333 | L177: 42
D178: закуска | E178: Икра кабачковая | F178: 60 | G178: 0.9 | H178: 2.9 | I178: 5.1 | J178: =(G178+I178)*4+H178*9 -> 50.1 | K178: 73 | L178: 13
D179: гор.напиток | E179: Какао | F179: 200 | G179: 3.6 | H179: 2.9 | I179: 22.2 | J179: =(G179+I179)*4+H179*9 -> 129.3 | K179: 289 | L179: 16
D180: хлеб | E180: Хлеб пшеничный йодированный | F180: 40 | G180: 3 | H180: 0.4 | I180: 19.6 | J180: =(G180+I180)*4+H180*9 -> 94 | K180: 123 | L180: 3.94
E181: Кисло-молочный продукт | F181: 100 | G181: 3 | H181: 2.5 | I181: 4.2 | J181: 51.3 | K181: 386 | L181: 16
D184: итого | F184: =SUM(F177:F183) -> 580 | G184: =SUM(G177:G183) -> 19.1 | H184: 18.8 | I184: 83.9 | J184: 581.2 | L184: =SUM(L177:L183) -> 90.94
A185: =A177 -> 2 | B185: =B177 -> 5 | C185: Обед | D185: закуска | E185: Салат из морской капусты | F185: 60 | G185: 0.42 | H185: 5 | I185: 0.9 | J185: =(G185+I185)*4+H185*9 -> 50.28 | K185: 56 | L185: 20
D186: 1 блюдо | E186: Суп крестьянский с перловой крупой | F186: 200 | G186: 2 | H186: 3.98 | I186: 13.2 | J186: 96.62 | K186: 98 | L186: 20
D187: 2 блюдо | E187: Рыба запеченная с яйцом | F187: 138 | G187: 15.2 | H187: 11.5 | I187: 3.3 | J187: 177.5 | K187: 347 | L187: 67
D188: гарнир | E188: Картофель отварной | F188: 150 | G188: 2.7 | H188: 6.3 | I188: 22.2 | J188: 156.3 | K188: 125 | L188: 25
D189: напиток | E189: Компот из кураги | F189: 200 | G189: 1 | H189: 0 | I189: 28.3 | J189: 117.2 | K189: 494 | L189: 10
D190: хлеб бел. | E190: Хлеб пшеничный йодированный | F190: 40 | G190: 3 | H190: 0.4 | I190: 19.6 | J190: 94 | K190: 123 | L190: 3.94
D191: хлеб черн. | E191: Хлеб ржано-пшеничный | F191: 80 | G191: 2.7 | H191: 0.45 | I191: 29.8 | J191: 134.05 | K191: 575 | L191: 9.1
D194: итого | F194: =SUM(F185:F193) -> 868 | G194: =SUM(G185:G193) -> 27.02 | H194: 27.63 | I194: 117.3 | J194: 825.95 | L194: =SUM(L185:L193) -> 155.04
A195: =A177 -> 2 | B195: =B177 -> 5 | C195: Итого за день: | F195: =F184+F194 -> 1448 | G195: =G184+G194 -> 46.12 | H195: =H184+H194 -> 46.43 | I195: =I184+I194 -> 201.2 | J195: =J184+J194 -> 1407.15 | L195: 245.98
C196: Среднее значение за период: | F196: =(F24+F43+F62+F81+F100+F119+F138+F157+F176+F195)/(IF(F24=0,0,1)+IF(F43=0,0,1)+IF(F62=0,0,1)+IF(F81=0,0,1)+IF(F100=0,0,1)+IF(F119=0,0,1)+IF(F138=0,0,1)+IF(F157=0,0,1)+IF(F176=0,0,1)+IF(F195=0,0,1)) -> 1342 | G196: =(G24+G43+G62+G81+G100+G119+G138+G157+G176+G195)/(IF(G24=0,0,1)+IF(G43=0,0,1)+IF(G62=0,0,1)+IF(G81=0,0,1)+IF(G100=0,0,1)+IF(G119=0,0,1)+IF(G138=0,0,1)+IF(G157=0,0,1)+IF(G176=0,0,1)+IF(G195=0,0,1)) -> 46.22 | H196: 46.973 | I196: 200.347 | J196: 1409.025 | L196: =(L24+L43+L62+L81+L100+L119+L138+L157+L176+L195)/(IF(L24=0,0,1)+IF(L43=0,0,1)+IF(L62=0,0,1)+IF(L81=0,0,1)+IF(L100=0,0,1)+IF(L119=0,0,1)+IF(L138=0,0,1)+IF(L157=0,0,1)+IF(L176=0,0,1)+IF(L195=0,0,1)) -> 274.167
